Cogmind - Beta 13 @@@ ROGUE MODE // 2024.05.21 @ 20:52:34 Player: Killakoala Result: Destroyed by G-34 Mercenary with Small Laser Performance ------------- Evolutions (0) 0 Regions Visited (2) 400 Robots Destroyed (13) 65 Value Destroyed (364) 364 Prototype IDs (0) 0 Alien Tech Used (0) 0 Bonus (0) 0 TOTAL SCORE: 829 Bonus ------- None Cogmind --------- Core Integrity 0/250 Matter 278/300 Energy 100/100 System Corruption 0% Temperature Cool (6) Movement Flying (40) Location -10/Mines Parts ------- > --- POWER (1) -------- (None) > --- PROPULSION (2) --- Flight Unit > --- UTILITY (2) ------ (None) > --- WEAPON (2) ------- Light Assault Rifle > --- INVENTORY (5) ---- Light Ion Engine Light Nuclear Core Targeting Computer Tractor Beam Peak State ------------ > --- POWER ------------ Ion Engine > --- PROPULSION ------- Aluminum Leg Aluminum Leg > --- UTILITY ---------- Small Storage Unit Tractor Beam > --- WEAPON ----------- Light Assault Rifle Light Assault Rifle > --- INVENTORY -------- Ion Engine Light Assault Rifle [Rating: 7] Favorites ----------- Power Ion Engine Engine Ion Engine Propulsion Aluminum Leg Leg Aluminum Leg Flight Unit Flight Unit Utility Small Storage Unit Device Tractor Beam Storage Small Storage Unit Weapon Light Assault Rifle Ballistic Gun Light Assault Rifle Build | -11 -10 -10 ------- Run | Yrd Mat Min Slots Evolved . | . . . Power . | . . . Propulsion . | . . . Utility . | . . . Weapon . | . . . Parts Attached 14 | 7 1 6 Power 3 | 1 . 2 Engine 3 | 1 . 2 Core . | . . . Reactor . | . . . Propulsion 6 | 2 1 3 Treads . | . . . Leg 4 | 2 1 1 Wheel . | . . . Hover . | . . . Flight 2 | . . 2 Utility 2 | 2 . . Device 1 | 1 . . Storage 1 | 1 . . Processor . | . . . Hackware . | . . . Protection . | . . . Artifact . | . . . Weapon 3 | 2 . 1 Energy Gun . | . . . Energy Cannon . | . . . Ballistic Gun 3 | 2 . 1 Ballistic Cannon . | . . . Launcher . | . . . Special Weapon . | . . . Impact Weapon . | . . . Slashing Weapon . | . . . Piercing Weapon . | . . . Special Melee Weapon . | . . . Unidentified Prototypes . | . . . Parts Lost 7 | . 2 5 Power 2 | . . 2 Propulsion 2 | . 1 1 Utility 1 | . 1 . Weapon 2 | . . 2 Highest Loss Streak 2 | . 1 2 To Critical Strikes . | . . . Average Slot Usage (%) 85 | . 96 64 Engine 11 | . 14 6 Leg 25 | . 27 20 Flight 1 | . . 5 Device 7 | . 10 . Storage 12 | . 14 10 Ballistic Gun 25 | . 28 20 Naked Turns . | . . . Heaviest Build 13 | 13 13 12 Greatest Support 20 | 20 20 20 Greatest Overweight (x) 1 | 1 1 1 Average Overweight (x) . | . . . Largest Inventory Capacity 8 | 8 8 8 Average Capacity 7 | 5 8 7 Most Carried 8 | 2 7 8 Average Carried 4 | 1 4 5 Final Capacity 8 | 8 8 5 Final Carried 6 | 2 6 4 Class Distribution -------------------- 100% | Mutant Dominant Class ---------------- Mutant | -10/Materials Mutant | -10/Mines Resources | -11 -10 -10 ----------- Run | Yrd Mat Min Matter Collected 411 | 276 74 61 Remotely 145 | 73 72 . Salvage Created 526 | 59 343 124 Parts 30 | 1 20 9 Haulers Intercepted 1 | . 1 . Recyclers Shooed . | . . . Parts Field Recycled . | . . . Retrieved Matter . | . . . Parts Self-Destructed . | . . . Prevented . | . . . Kills | -11 -10 -10 ------- Run | Yrd Mat Min Combat Hostiles Destroyed 10 | . 7 3 Guns 10 | . 7 3 Classes Destroyed 5 | 1 2 2 Worker 1 | . . 1 Hauler 1 | . 1 . Recycler 1 | 1 . . Swarmer 1 | . . 1 Grunt 9 | . 7 2 Best Kill Streak 3 | 1 3 2 Combat Bots Only 2 | . 2 2 Max Kills in Single Turn 1 | 1 1 1 Gunslinging . | . . . Exploded . | . . . Melee . | . . . Uniques/NPCs Destroyed . | . . . Combat | -11 -10 -10 -------- Run | Yrd Mat Min Hostile Shots Fired 106 | . 31 75 Missed 31 | . 8 23 Damage Taken 895 | . 334 561 Core 259 | . 34 225 Absorbed by Shields . | . . . Core Remaining (%) 100 | 100 . . Volleys Fired 75 | 3 39 33 Largest 2 | 2 2 2 Hottest 40 | 40 40 40 Shots Fired 129 | 6 78 45 Gun 129 | 6 78 45 Cannon . | . . . Launcher . | . . . Special . | . . . Kinetic 129 | 6 78 45 Thermal . | . . . Explosive . | . . . Electromagnetic . | . . . Robot Hit Streak 7 | 5 7 6 Robot Miss Streak 4 | . 4 3 Penetration Max . | . . . Secondary Targets . | . . . Shots Hit Robots 71 | 5 43 23 Core Hits 38 | 3 22 13 Critical Kills . | . . . Critical Parts Destroyed . | . . . Critical Strikes . | . . . Melee Attacks . | . . . Impact . | . . . Slashing . | . . . Piercing . | . . . Sneak Attacks . | . . . Combat Hostiles . | . . . Follow-up Attacks . | . . . Damage Inflicted 562 | 38 342 182 Guns 561 | 38 342 181 Cannons . | . . . Explosions . | . . . Melee . | . . . Ramming 1 | . . 1 Kinetic 561 | 38 342 181 Thermal . | . . . Explosive . | . . . Electromagnetic . | . . . Impact . | . . . Slashing . | . . . Piercing . | . . . Highest Corruption . | . . . Average Corruption . | . . . Corruption Purged . | . . . Corruption Blocked . | . . . Overload Shots . | . . . Overflow Damage . | . . . Projectiles . | . . . Explosions . | . . . Melee . | . . . Knockbacks . | . . . Impact . | . . . Kinetic . | . . . Secondary . | . . . Self-Inflicted Damage . | . . . Shots . | . . . Rammed 2 | . . 2 Targets Rammed 2 | . . 2 Kicked . | . . . Crushed . | . . . Highest Temperature 18 | . 18 15 Average Temperature 8 | . 8 7 Received Heat Transfer 417 | . 162 255 Siege Activations . | . . . Robots Corrupted . | . . . Combat Hostiles . | . . . Parts Fried . | . . . Impact Corruptions . | . . . Robots Melted . | . . . Combat Hostiles . | . . . Parts Melted . | . . . Heat Transferred . | . . . Parts Sabotaged . | . . . Parts Stolen . | . . . Parts Stripped . | . . . Power Chain Reactions . | . . . Alert | -11 -10 -10 ------- Run | Yrd Mat Min Peak Influence 155 | 5 155 136 Initial 31 | . 3 31 Average 64 | 2 55 98 Maximum Alert Level . | . . . Low Security (%) 100 | 100 100 100 Level 1 . | . . . Level 2 . | . . . Level 3 . | . . . Level 4 . | . . . Level 5 . | . . . High Security . | . . . Max Security . | . . . Squads Dispatched 2 | . 2 . Investigation . | . . . Extermination . | . . . Reinforcement 2 | . 2 . Assault . | . . . Garrison . | . . . Intercept . | . . . Searches Triggered . | . . . Construction Impeded . | . . . Haulers Reinforced . | . . . Active Scanning Responses . | . . . Cargo Convoy Interrupts . | . . . Stealth | -11 -10 -10 --------- Run | Yrd Mat Min Distress Signals . | . . . Communications Jammed . | . . . Distress Signals . | . . . Times Spotted 26 | . 17 9 Peak Tracking Total 3 | . 3 3 Tactical Retreats 2 | . . 2 Traps | -11 -10 -10 ------- Run | Yrd Mat Min Traps Triggered 1 | . 1 . Indirectly . | . . . Trap Hack Attempts . | . . . Triggered . | . . . Disarmed . | . . . Reprogrammed . | . . . Reused . | . . . Traps Extracted . | . . . Installed . | . . . Triggered . | . . . Machines | -11 -10 -10 ---------- Run | Yrd Mat Min Machines Disabled . | . . . Max in Single Turn . | . . . Machines Repaired . | . . . Machines Dismantled . | . . . Machines Sabotaged . | . . . Overloaded Fab Kills . | . . . Hacking | -11 -10 -10 --------- Run | Yrd Mat Min Machines Accessed 1 | . 1 . Terminals 1 | . 1 . Fabricators . | . . . Repair Stations . | . . . Recycling Units . | . . . Scanalyzers . | . . . Garrison Access . | . . . Total Hacks 2 | . 2 . Successful . | . . . Failed 2 | . 2 . Catastrophic 1 | . 1 . Database Lockouts . | . . . Manual 1 | . 1 . Terminals 2 | . 2 . Fabricators . | . . . Repair Stations . | . . . Recycling Units . | . . . Scanalyzers . | . . . Garrison Access . | . . . Terminal Hacks . | . . . Fabricator Hacks . | . . . Repair Station Hacks . | . . . Recycling Unit Hacks . | . . . Scanalyzer . | . . . Garrison Access Hacks . | . . . Unauthorized Hacks . | . . . Terminals . | . . . Fabricators . | . . . Repair Stations . | . . . Recycling Units . | . . . Scanalyzers . | . . . Garrison Access . | . . . Data Cores Recovered . | . . . Used . | . . . Hacking Detections 1 | . 1 . Full Trace Events . | . . . Feedback Events . | . . . Feedback Blocked . | . . . Robot Schematics Acquired . | . . . Robots Built . | . . . Authchips . | . . . Time . | . . . Total Robot Build Rating . | . . . Part Schematics Acquired . | . . . Parts Built . | . . . Authchips . | . . . Time . | . . . Total Part Build Rating . | . . . Parts Repaired . | . . . Time . | . . . Parts Recycled . | . . . Recycled Matter . | . . . Retrieved Matter . | . . . Retrieved Components . | . . . Parts Scanalyzed . | . . . Part Schematics Acquired . | . . . Parts Damaged . | . . . Bothacking | -11 -10 -10 ------------ Run | Yrd Mat Min Used RIF Installer . | . . . Robots Hacked . | . . . Non-combat . | . . . Combat . | . . . Robot Hacks Applied . | . . . Relay Couplers Released . | . . . Fabnet Peak Effective % . | . . . Robots Rewired . | . . . Allies Hacked . | . . . Hacks Repelled . | . . . Allies | -11 -10 -10 -------- Run | Yrd Mat Min Total Allies . | . . . Largest Group . | . . . Highest-Rated Group . | . . . Highest-Rated Ally . | . . . Total Orders . | . . . Ally Attacks . | . . . Total Damage . | . . . Kills . | . . . Allies Corrupted . | . . . Allies Melted . | . . . Intel | -11 -10 -10 ------- Run | Yrd Mat Min Robot Analysis Total . | . . . Derelict Logs Recovered . | . . . Drone Launches . | . . . Drone Recoveries . | . . . Exploration | -11 -10 -10 ------------- Run | Yrd Mat Min Turns Passed 906 | 61 570 275 Spaces Moved 544 | 38 379 127 Core 8 | 8 . . Treads . | . . . Legs 518 | 30 379 109 Wheels . | . . . Hover . | . . . Flight 18 | . . 18 Fastest Speed 37 | 50 120 37 Average Speed 118 | 107 122 112 Slowest Speed 190 | 120 190 120 Overloaded Moves . | . . . Propulsion Burnouts . | . . . Robots Hopped 1 | . . 1 Cave-ins Triggered . | . . . Exploration Rate (%) 32 | 4 62 32 Regions Visited 2 Branch Regions 1 Pre-discovered Areas . | . . . Known Exits Taken . | . . . Unknown Exits Taken 2 | 1 1 . Scrap Searched . | . . . Spaces Dug . | . . . Terrain Destroyed . | . . . Melee . | . . . Projectile . | . . . AOE . | . . . Terrain Rammed . | . . . Walls Destroyed . | . . . Machines Disabled . | . . . Actions | -11 -10 -10 --------- Run | Yrd Mat Min Total 697 | 49 423 225 Wait 47 | . . 47 Move 540 | 37 378 125 Hop 1 | . . 1 Pick Up 11 | 2 5 4 Fast Attach 8 | 7 . 1 Attach 5 | . 1 4 Detach 1 | . . 1 Swap 1 | . . 1 Drop 6 | . . 6 Fire 75 | 3 39 33 Melee . | . . . Ram 2 | . . 2 Kick . | . . . Crush . | . . . Escape Stasis . | . . . Rewire . | . . . Trap . | . . . Miscellaneous . | . . . Route ------- -11/Scrapyard -10/Materials (discovered 4 exits: [*Mat x2] / [*Min x2]) -10/Mines History --------- Turn | Location | Event 3 | -11/Scrapyard | Discovered new exit (range 16) 62 | -11/Scrapyard | Entered Materials 261 | -10/Materials | Discovered new exit (range 15) 311 | -10/Materials | Build established: Mutant 318 | -10/Materials | Discovered new exit (range 13) 510 | -10/Materials | Discovered new exit (range 11) 556 | -10/Materials | Discovered new exit (range 8) 632 | -10/Materials | Entered Mines 826 | -10/Mines | Excavation squad dispatched 826 | -10/Mines | A large section of the Mines collapsed 875 | -10/Mines | Core integrity fell below 50% 890 | -10/Mines | Core integrity fell below 20% 907 | -10/Mines | Destroyed by G-34 Mercenary with Small Laser Last Messages --------------- to wait a turn. Dropped Aluminum Leg. Dropped Sml. Storage Unit. Sml. Storage Unit crushed and broken. U-05 Engineer lays Concrete. T-07 Excavator is excavating. U-05 Engineer lays Concrete. T-07 Excavator is excavating. U-05 Engineer lays Concrete. T-07 Excavator is excavating. U-05 Engineer lays Concrete. T-07 Excavator is excavating. Flight Unit destroyed. T-07 Excavator is excavating. U-05 Engineer lays Concrete. T-07 Excavator is excavating. Slammed into T-07 Excavator. Slammed into U-05 Engineer. U-05 Engineer lays Concrete. Ion Engine destroyed. Map ----- +----------------------------------------------------+ | ##???????????????? ????????????????????? | | #???????????????? #????????????????????? | | #???????????????? #????????????????????? | | ##???????????????# #????????????????????? | | ##???????????????# #????????????????????? | | ################# #????????????????????? | | ##???????????????????? | | #???????????????????? | | ############## """ #???????????????????? | | #?############ """ #???????????????????? | | ??# """ #???????????????????? | | ### #???????????????????? | | ######### ## ????????????? | | ### #???????####?# ??????????? | | ## #?????????????####### ???????????? | | ##?????????????????????## ???????????? | | #???????????????????????????????????? | | #???????????????????????????????????? | | ##???????????????????????????????????? | | # ##????????????????????????????????????? | | ## ##?????????????????????##??????????????? | | ?# #?????????????????????# ##?????? ?????? | | ?# #????????????????????# ##?? ?????? | | ?# ####????####????????? ## #??????? | | ?# #???## ##???????#### #???????? | | ?#### #???# ##?????##g@# #????????? | | ????# #???# #???###gg## #????????? | | ????# #??## """ #??## = ## #?????????? | | ????# #?## """ #### ==######??????????? | | ???## ### """ u #####??????????????? | | ???# """ ## #??????????????? | | ???## ### #?? #??????????????? | | ????#### ##?# ##???#??????????????? | | ???????## =#??# #???????????????????? | | ????????## #??# #???????????????????? | | ?????????## ##??## ##???????????????????? | | ??????????# ##????###????????????????????? | | ?????????? ##????????????????????????????? | | ?????????## #?????????????????????????????? | | ??????????# #?????????????????????????????? | | ??????????# ?????????????????????????????? | | ??????????###?????????????????????????????? | | ??????????????????????????????????????????? | | ??????????????????????????????????????????? | | ??????????????????????????????????????????? | | ??????????????????????????????????????????? | | ??????????????????????????????????????????? | | ??????????????????????????????????????????? | | ??????????????????????????????????????????? | | ??????????????????????????????????????????? | +----------------------------------------------------+ Best States ------------- Heat Dissipation 25 Energy Generation 10 Energy Capacity 250 Matter Stores 300 Matter Capacity 300 Sight Range 16 Terrain Scan Density 10 Evasion (%) 62 Item Schematics ----------------- None Robot Schematics ------------------ None Fabricated ------------ Nothing Alien Tech Used ----------------- None Achievements -------------- Use The Force Challenges ------------ None Game ------ Seed DirtyParticleRipper Manual? 0 Play Time 00:10:53 Cumulative 5.0 hours Start 2024.05.21 @ 20:44:06 End 2024.05.21 @ 20:52:34 Sessions 1 Manual Loads 0 Difficulty Rogue Special Mode None Game No. 10 Rogue 7 Adventurer 3 Explorer 0 Win Type - Total 0 Types 0/0/0/0/0/0/0/0/0 Lore% 11 Gallery% 11 Achievement% 11 Wizard Run 0 Options --------- Layout 1 ASCII 0 Keyboard 0 Movement Mouse Keybinds 0 Fullscreen 2 Font 24/Smallcaps Map View 50x35 Zoom Use 0% Tactical HUD 0 Map Filters NONE Filters NONE Steam 1 RUN: 9a41b26e-d64d-4a7d-95db-38791ce93d8e